{"text_format":"3","workbook":"xlsx","n_sheets":1,"sheets":["Varastoluettelo"],"not_rendered":{"defined_names":3},"read":"whole","date_system":"1900"}

{"sheet":"Varastoluettelo","index":0,"n_rows":28,"n_cols":12,"rows_kept":28,"merged":[[0,2,0,4],[0,5,0,6]]}
[null,null,"Varastoluettelo",null,null,"Korostetaanko tilattavat nimikkeet?",null,"Kyllä"]
[]
[null,"Merkityt tilattavat nimikkeet","Varastotunnus","Nimi","Kuvaus","Yksikköhinta","Varastossa oleva määrä","Varastoarvo","Tilauspistetaso","Tilausaika päivinä","Tilausmäärä","Tilaus lopetettu?"]
[null,{"$f":"IFERROR((Varastoluettelo[[#This Row],[Varastossa oleva määrä]]<=Varastoluettelo[[#This Row],[Tilauspistetaso]])*(Varastoluettelo[[#This Row],[Tilaus lopetettu?]]=\"\")*arvonKorostus,0)","v":1},"VAR0001","Tuote 1","Kuv. 1",{"v":51,"d":"51.00 €"},25,{"$f":"Varastoluettelo[[#This Row],[Yksikköhinta]]*Varastoluettelo[[#This Row],[Varastossa oleva määrä]]","v":{"v":1275,"d":"1,275.00 €"}},29,13,50,""]
[null,{"$f":"IFERROR((Varastoluettelo[[#This Row],[Varastossa oleva määrä]]<=Varastoluettelo[[#This Row],[Tilauspistetaso]])*(Varastoluettelo[[#This Row],[Tilaus lopetettu?]]=\"\")*arvonKorostus,0)","v":1},"VAR0002","Nimike 2","Kuv. 2",{"v":93,"d":"93.00 €"},132,{"$f":"Varastoluettelo[[#This Row],[Yksikköhinta]]*Varastoluettelo[[#This Row],[Varastossa oleva määrä]]","v":{"v":12276,"d":"12,276.00 €"}},231,4,50,""]
[null,{"$f":"IFERROR((Varastoluettelo[[#This Row],[Varastossa oleva määrä]]<=Varastoluettelo[[#This Row],[Tilauspistetaso]])*(Varastoluettelo[[#This Row],[Tilaus lopetettu?]]=\"\")*arvonKorostus,0)","v":0},"VAR0003","Nimike 3","Kuv. 3",{"v":57,"d":"57.00 €"},151,{"$f":"Varastoluettelo[[#This Row],[Yksikköhinta]]*Varastoluettelo[[#This Row],[Varastossa oleva määrä]]","v":{"v":8607,"d":"8,607.00 €"}},114,11,150,""]
[null,{"$f":"IFERROR((Varastoluettelo[[#This Row],[Varastossa oleva määrä]]<=Varastoluettelo[[#This Row],[Tilauspistetaso]])*(Varastoluettelo[[#This Row],[Tilaus lopetettu?]]=\"\")*arvonKorostus,0)","v":0},"VAR0004","Nimike 4","Kuv. 4",{"v":19,"d":"19.00 €"},186,{"$f":"Varastoluettelo[[#This Row],[Yksikköhinta]]*Varastoluettelo[[#This Row],[Varastossa oleva määrä]]","v":{"v":3534,"d":"3,534.00 €"}},158,6,50,""]
[null,{"$f":"IFERROR((Varastoluettelo[[#This Row],[Varastossa oleva määrä]]<=Varastoluettelo[[#This Row],[Tilauspistetaso]])*(Varastoluettelo[[#This Row],[Tilaus lopetettu?]]=\"\")*arvonKorostus,0)","v":0},"VAR0005","Nimike 5","Kuv. 5",{"v":75,"d":"75.00 €"},62,{"$f":"Varastoluettelo[[#This Row],[Yksikköhinta]]*Varastoluettelo[[#This Row],[Varastossa oleva määrä]]","v":{"v":4650,"d":"4,650.00 €"}},39,12,50,""]
[null,{"$f":"IFERROR((Varastoluettelo[[#This Row],[Varastossa oleva määrä]]<=Varastoluettelo[[#This Row],[Tilauspistetaso]])*(Varastoluettelo[[#This Row],[Tilaus lopetettu?]]=\"\")*arvonKorostus,0)","v":1},"VAR0006","Nimike 6","Kuv. 6",{"v":11,"d":"11.00 €"},5,{"$f":"Varastoluettelo[[#This Row],[Yksikköhinta]]*Varastoluettelo[[#This Row],[Varastossa oleva määrä]]","v":{"v":55,"d":"55.00 €"}},9,13,150,""]
[null,{"$f":"IFERROR((Varastoluettelo[[#This Row],[Varastossa oleva määrä]]<=Varastoluettelo[[#This Row],[Tilauspistetaso]])*(Varastoluettelo[[#This Row],[Tilaus lopetettu?]]=\"\")*arvonKorostus,0)","v":0},"VAR0007","Nimike 7","Kuv. 7",{"v":56,"d":"56.00 €"},58,{"$f":"Varastoluettelo[[#This Row],[Yksikköhinta]]*Varastoluettelo[[#This Row],[Varastossa oleva määrä]]","v":{"v":3248,"d":"3,248.00 €"}},109,7,100,"kyllä"]
[null,{"$f":"IFERROR((Varastoluettelo[[#This Row],[Varastossa oleva määrä]]<=Varastoluettelo[[#This Row],[Tilauspistetaso]])*(Varastoluettelo[[#This Row],[Tilaus lopetettu?]]=\"\")*arvonKorostus,0)","v":1},"VAR0008","Nimike 8","Kuv. 8",{"v":38,"d":"38.00 €"},101,{"$f":"Varastoluettelo[[#This Row],[Yksikköhinta]]*Varastoluettelo[[#This Row],[Varastossa oleva määrä]]","v":{"v":3838,"d":"3,838.00 €"}},162,3,100,""]
[null,{"$f":"IFERROR((Varastoluettelo[[#This Row],[Varastossa oleva määrä]]<=Varastoluettelo[[#This Row],[Tilauspistetaso]])*(Varastoluettelo[[#This Row],[Tilaus lopetettu?]]=\"\")*arvonKorostus,0)","v":0},"VAR0009","Nimike 9","Kuv. 9",{"v":59,"d":"59.00 €"},122,{"$f":"Varastoluettelo[[#This Row],[Yksikköhinta]]*Varastoluettelo[[#This Row],[Varastossa oleva määrä]]","v":{"v":7198,"d":"7,198.00 €"}},82,3,150,""]
[null,{"$f":"IFERROR((Varastoluettelo[[#This Row],[Varastossa oleva määrä]]<=Varastoluettelo[[#This Row],[Tilauspistetaso]])*(Varastoluettelo[[#This Row],[Tilaus lopetettu?]]=\"\")*arvonKorostus,0)","v":1},"VAR0010","Nimike 10","Kuv. 10",{"v":50,"d":"50.00 €"},175,{"$f":"Varastoluettelo[[#This Row],[Yksikköhinta]]*Varastoluettelo[[#This Row],[Varastossa oleva määrä]]","v":{"v":8750,"d":"8,750.00 €"}},283,8,150,""]
[null,{"$f":"IFERROR((Varastoluettelo[[#This Row],[Varastossa oleva määrä]]<=Varastoluettelo[[#This Row],[Tilauspistetaso]])*(Varastoluettelo[[#This Row],[Tilaus lopetettu?]]=\"\")*arvonKorostus,0)","v":1},"VAR0011","Nimike 11","Kuv. 11",{"v":59,"d":"59.00 €"},176,{"$f":"Varastoluettelo[[#This Row],[Yksikköhinta]]*Varastoluettelo[[#This Row],[Varastossa oleva määrä]]","v":{"v":10384,"d":"10,384.00 €"}},229,1,100,""]
[null,{"$f":"IFERROR((Varastoluettelo[[#This Row],[Varastossa oleva määrä]]<=Varastoluettelo[[#This Row],[Tilauspistetaso]])*(Varastoluettelo[[#This Row],[Tilaus lopetettu?]]=\"\")*arvonKorostus,0)","v":1},"VAR0012","Nimike 12","Kuv. 12",{"v":18,"d":"18.00 €"},22,{"$f":"Varastoluettelo[[#This Row],[Yksikköhinta]]*Varastoluettelo[[#This Row],[Varastossa oleva määrä]]","v":{"v":396,"d":"396.00 €"}},36,12,50,""]
[null,{"$f":"IFERROR((Varastoluettelo[[#This Row],[Varastossa oleva määrä]]<=Varastoluettelo[[#This Row],[Tilauspistetaso]])*(Varastoluettelo[[#This Row],[Tilaus lopetettu?]]=\"\")*arvonKorostus,0)","v":1},"VAR0013","Nimike 13","Kuv. 13",{"v":26,"d":"26.00 €"},72,{"$f":"Varastoluettelo[[#This Row],[Yksikköhinta]]*Varastoluettelo[[#This Row],[Varastossa oleva määrä]]","v":{"v":1872,"d":"1,872.00 €"}},102,9,100,""]
[null,{"$f":"IFERROR((Varastoluettelo[[#This Row],[Varastossa oleva määrä]]<=Varastoluettelo[[#This Row],[Tilauspistetaso]])*(Varastoluettelo[[#This Row],[Tilaus lopetettu?]]=\"\")*arvonKorostus,0)","v":1},"VAR0014","Nimike 14","Kuv. 14",{"v":42,"d":"42.00 €"},62,{"$f":"Varastoluettelo[[#This Row],[Yksikköhinta]]*Varastoluettelo[[#This Row],[Varastossa oleva määrä]]","v":{"v":2604,"d":"2,604.00 €"}},83,2,100,""]
[null,{"$f":"IFERROR((Varastoluettelo[[#This Row],[Varastossa oleva määrä]]<=Varastoluettelo[[#This Row],[Tilauspistetaso]])*(Varastoluettelo[[#This Row],[Tilaus lopetettu?]]=\"\")*arvonKorostus,0)","v":0},"VAR0015","Nimike 15","Kuv. 15",{"v":32,"d":"32.00 €"},46,{"$f":"Varastoluettelo[[#This Row],[Yksikköhinta]]*Varastoluettelo[[#This Row],[Varastossa oleva määrä]]","v":{"v":1472,"d":"1,472.00 €"}},23,15,50,""]
[null,{"$f":"IFERROR((Varastoluettelo[[#This Row],[Varastossa oleva määrä]]<=Varastoluettelo[[#This Row],[Tilauspistetaso]])*(Varastoluettelo[[#This Row],[Tilaus lopetettu?]]=\"\")*arvonKorostus,0)","v":1},"VAR0016","Nimike 16","Kuv. 16",{"v":90,"d":"90.00 €"},96,{"$f":"Varastoluettelo[[#This Row],[Yksikköhinta]]*Varastoluettelo[[#This Row],[Varastossa oleva määrä]]","v":{"v":8640,"d":"8,640.00 €"}},180,3,50,""]
[null,{"$f":"IFERROR((Varastoluettelo[[#This Row],[Varastossa oleva määrä]]<=Varastoluettelo[[#This Row],[Tilauspistetaso]])*(Varastoluettelo[[#This Row],[Tilaus lopetettu?]]=\"\")*arvonKorostus,0)","v":0},"VAR0017","Nimike 17","Kuv. 17",{"v":97,"d":"97.00 €"},57,{"$f":"Varastoluettelo[[#This Row],[Yksikköhinta]]*Varastoluettelo[[#This Row],[Varastossa oleva määrä]]","v":{"v":5529,"d":"5,529.00 €"}},98,12,50,"Kyllä"]
[null,{"$f":"IFERROR((Varastoluettelo[[#This Row],[Varastossa oleva määrä]]<=Varastoluettelo[[#This Row],[Tilauspistetaso]])*(Varastoluettelo[[#This Row],[Tilaus lopetettu?]]=\"\")*arvonKorostus,0)","v":1},"VAR0018","Nimike 18","Kuv. 18",{"v":12,"d":"12.00 €"},6,{"$f":"Varastoluettelo[[#This Row],[Yksikköhinta]]*Varastoluettelo[[#This Row],[Varastossa oleva määrä]]","v":{"v":72,"d":"72.00 €"}},7,13,50,""]
[null,{"$f":"IFERROR((Varastoluettelo[[#This Row],[Varastossa oleva määrä]]<=Varastoluettelo[[#This Row],[Tilauspistetaso]])*(Varastoluettelo[[#This Row],[Tilaus lopetettu?]]=\"\")*arvonKorostus,0)","v":1},"VAR0019","Nimike 19","Kuv. 19",{"v":82,"d":"82.00 €"},143,{"$f":"Varastoluettelo[[#This Row],[Yksikköhinta]]*Varastoluettelo[[#This Row],[Varastossa oleva määrä]]","v":{"v":11726,"d":"11,726.00 €"}},164,12,150]
[null,{"$f":"IFERROR((Varastoluettelo[[#This Row],[Varastossa oleva määrä]]<=Varastoluettelo[[#This Row],[Tilauspistetaso]])*(Varastoluettelo[[#This Row],[Tilaus lopetettu?]]=\"\")*arvonKorostus,0)","v":0},"VAR0020","Nimike 20","Kuv. 20",{"v":16,"d":"16.00 €"},124,{"$f":"Varastoluettelo[[#This Row],[Yksikköhinta]]*Varastoluettelo[[#This Row],[Varastossa oleva määrä]]","v":{"v":1984,"d":"1,984.00 €"}},113,14,50,""]
[null,{"$f":"IFERROR((Varastoluettelo[[#This Row],[Varastossa oleva määrä]]<=Varastoluettelo[[#This Row],[Tilauspistetaso]])*(Varastoluettelo[[#This Row],[Tilaus lopetettu?]]=\"\")*arvonKorostus,0)","v":0},"VAR0021","Nimike 21","Kuv. 21",{"v":19,"d":"19.00 €"},112,{"$f":"Varastoluettelo[[#This Row],[Yksikköhinta]]*Varastoluettelo[[#This Row],[Varastossa oleva määrä]]","v":{"v":2128,"d":"2,128.00 €"}},75,11,50,""]
[null,{"$f":"IFERROR((Varastoluettelo[[#This Row],[Varastossa oleva määrä]]<=Varastoluettelo[[#This Row],[Tilauspistetaso]])*(Varastoluettelo[[#This Row],[Tilaus lopetettu?]]=\"\")*arvonKorostus,0)","v":0},"VAR0022","Nimike 22","Kuv. 22",{"v":24,"d":"24.00 €"},182,{"$f":"Varastoluettelo[[#This Row],[Yksikköhinta]]*Varastoluettelo[[#This Row],[Varastossa oleva määrä]]","v":{"v":4368,"d":"4,368.00 €"}},132,15,150,""]
[null,{"$f":"IFERROR((Varastoluettelo[[#This Row],[Varastossa oleva määrä]]<=Varastoluettelo[[#This Row],[Tilauspistetaso]])*(Varastoluettelo[[#This Row],[Tilaus lopetettu?]]=\"\")*arvonKorostus,0)","v":0},"VAR0023","Nimike 23","Kuv. 23",{"v":29,"d":"29.00 €"},106,{"$f":"Varastoluettelo[[#This Row],[Yksikköhinta]]*Varastoluettelo[[#This Row],[Varastossa oleva määrä]]","v":{"v":3074,"d":"3,074.00 €"}},142,1,150,"Kyllä"]
[null,{"$f":"IFERROR((Varastoluettelo[[#This Row],[Varastossa oleva määrä]]<=Varastoluettelo[[#This Row],[Tilauspistetaso]])*(Varastoluettelo[[#This Row],[Tilaus lopetettu?]]=\"\")*arvonKorostus,0)","v":0},"VAR0024","Nimike 24","Kuv. 24",{"v":75,"d":"75.00 €"},173,{"$f":"Varastoluettelo[[#This Row],[Yksikköhinta]]*Varastoluettelo[[#This Row],[Varastossa oleva määrä]]","v":{"v":12975,"d":"12,975.00 €"}},127,9,100,""]
[null,{"$f":"IFERROR((Varastoluettelo[[#This Row],[Varastossa oleva määrä]]<=Varastoluettelo[[#This Row],[Tilauspistetaso]])*(Varastoluettelo[[#This Row],[Tilaus lopetettu?]]=\"\")*arvonKorostus,0)","v":0},"VAR0025","Nimike 25","Kuv. 25",{"v":14,"d":"14.00 €"},28,{"$f":"Varastoluettelo[[#This Row],[Yksikköhinta]]*Varastoluettelo[[#This Row],[Varastossa oleva määrä]]","v":{"v":392,"d":"392.00 €"}},21,8,50,""]